fUST/lending_fUST_20240103
["ID","MTS","AMOUNT","RATE_DAILY","PERIOD"]
[309931851,1704221347093,-498.60871642,0.00032255,4]
[309931852,1704221352173,-2870.59441398,0.00032255,4]
[309931853,1704221352194,-1369.27405865,0.00032255,4]
[309931854,1704221352215,-1050.30153828,0.00032256,2]
[309931855,1704221352237,-1209.0155047,0.00032256,4]
[309931856,1704221352258,-384.245617,0.00032257,2]
[309931857,1704221352278,-3000.0,0.00032262,2]
[309931858,1704221352298,-200.0,0.00032266,2]
[309931859,1704221352319,-154.82968734,0.00032379,2]
[309931860,1704221352341,-733.38397489,0.00032706,4]
[309931861,1704221352362,-25307.01610997,0.00032706,4]
[309931862,1704221352383,-154.82968734,0.00032706,4]
[309931863,1704221352403,-920.94795491,0.00032706,4]
[309931864,1704221352423,-1982.30417186,0.00032709,3]
[309931865,1704221352445,-171.18046623,0.0003271,2]
[309931866,1704221352467,-166.666666,0.00032815,2]
[309931867,1704221352486,-182.071027,0.00033582,2]
[309931868,1704221352507,-1000.0,0.00034,7]
[309931869,1704221352529,-154.82968734,0.00034291,5]
[309931870,1704221352548,-275.0,0.00034292,2]
[309931871,1704221352569,-11731.281089,0.00034298,2]
[309931872,1704221352591,-189.993243,0.00034521,2]
[309931873,1704221352612,-171.18046623,0.00034541,2]
[309931874,1704221352633,-3421.59,0.00034631,3]
[309931875,1704221352655,-28099.54625373,0.00034641,4]
[309931876,1704221361110,-1593.3325705,0.00034641,4]
[309931877,1704221361132,-52017.04885385,0.00034641,4]
[309931878,1704221361154,-1469.180005,0.00034642,2]
[309931879,1704221361180,-1469.180005,0.00034642,2]
[309931880,1704221361201,-949.42696309,0.00034642,2]
[309931881,1704221364109,-154.82968734,0.00032706,4]
[309931882,1704221364131,-519.75304191,0.00034642,2]
[309931883,1704221364156,-1469.180005,0.00034642,2]
[309931884,1704221364176,-1469.180005,0.00034642,2]
[309931885,1704221364198,-250.0,0.00035481,15]
[309931886,1704221364221,-161.064376,0.00035616,120]
[309931887,1704221364241,-999.82878408,0.00036051,2]
[309931888,1704221364262,-862.76263962,0.00036241,4]
[309931889,1704221366121,-144.83612806,0.00036241,4]
[309931890,1704221366146,-1000.0,0.00036245,30]
[309931891,1704221366166,-2276.54270889,0.00036247,4]
[309931892,1704221366188,-249.55578673,0.00036249,4]
[309931893,1704221368094,-154.90703722,0.00032379,2]
[309931894,1704221368114,-3528.79175548,0.00032706,4]
[309931895,1704221368136,-688.59299071,0.00036249,4]
[309931896,1704221368159,-289.69816759,0.0003625,2]
[309931897,1704221369087,-453.98889272,0.00032706,4]
[309931898,1704221369109,-1.81766378,0.0003625,2]
[309931899,1704221373115,-566.19194991,0.00032706,4]
[309931900,1704221373136,-53.77353938,0.0003625,2]
[309931948,1704221432196,-155.53100332,0.00032706,4]
[309931949,1704221432206,-9.48289784,0.0003625,2]
[309931950,1704221432215,-622.2116886,0.00036951,2]
[309931951,1704221432224,-380.00297611,0.00038025,2]
[309931952,1704221432233,-1577.08327077,0.00038025,2]
[309931953,1704221432242,-473.53387627,0.00038037,2]
[309931954,1704221432252,-174.449981,0.00038322,2]
[309931955,1704221432261,-6103.89553113,0.00038348,4]
[309931956,1704221432271,-5756.24978439,0.00038349,4]
[309931957,1704221432281,-160.71099365,0.00038349,2]
[309931958,1704221432291,-168.15299776,0.00038546,2]
[309931959,1704221432300,-350.0,0.00039029,30]
[309931960,1704221432310,-873.6,0.00039239,5]
[309931961,1704221432319,-189.993243,0.0003963,2]
[309931962,1704221432329,-289.0,0.00039836,2]
[309931963,1704221432338,-1452.80209204,0.0004,10]
[309931964,1704221432347,-354.77226859,0.0004125,2]
[309931965,1704221432356,-151.0,0.00041398,7]
[309931966,1704221432366,-151.0,0.00041398,7]
[309931967,1704221432375,-11332.08805207,0.00041398,4]
[309931968,1704221432384,-154.82968734,0.00041398,8]
[309931969,1704221432394,-174.893693,0.00042091,30]
[309931970,1704221432403,-500.0,0.00042465,15]
[309931971,1704221432413,-1845.59,0.0004269,67]
[309931972,1704221432422,-200.0,0.00042932,30]
[309931973,1704221432432,-289.0,0.00042932,30]
[309931974,1704221432441,-501.0,0.00043,2]
[309931975,1704221432452,-200.0,0.00043,90]
[309931976,1704221432461,-1000.0,0.00043287,7]
[309931977,1704221432471,-315.3427586,0.00043288,2]
[309931978,1704221432480,-1625.72382678,0.00043698,2]
[309931979,1704221432490,-550.0,0.00043835,7]
[309931980,1704221432499,-240.87258316,0.0004397,2]
[309931981,1704221432509,-2608.0,0.0004408,2]
[309931982,1704221432609,-151.0,0.0004408,7]
[309931983,1704221432622,-151.0,0.0004408,7]
[309931984,1704221432632,-350.0,0.00044109,7]
[309931985,1704221432642,-160.0,0.00044581,2]
[309931986,1704221432651,-150.0,0.00044581,2]
[309931987,1704221432659,-7213.4552676,0.000449,120]
[309931988,1704221432668,-178.1239,0.000449,7]
[309931989,1704221432677,-167.72,0.00045027,2]
[309931990,1704221432686,-168.59770396,0.00045027,2]
[309931991,1704221432695,-1074.36124576,0.00045073,2]
[309931992,1704221432705,-250.0,0.00045074,10]
[309931993,1704221432714,-1103.70935727,0.00045077,4]
[309931994,1704221432724,-184.40150636,0.00045078,4]
[309931995,1704221432734,-4752.81073605,0.00045078,2]
[309931996,1704221432743,-1000.0,0.00045078,2]
[309931997,1704221432753,-1234.59423356,0.00045078,2]
[309931998,1704221432762,-871.52322355,0.00045078,4]
[309931999,1704221432772,-1149.15198572,0.00045078,4]
[309932000,1704221432781,-151.0,0.00045078,7]
[309932001,1704221432791,-151.0,0.00045078,7]
[309932002,1704221432801,-151.0,0.00045328,30]
[309932003,1704221432810,-153.0,0.00045342,2]
[309932004,1704221432819,-153.0,0.00045342,2]
[309932005,1704221432829,-153.0,0.00045342,2]
[309932006,1704221432838,-687.1573933,0.00045538,2]
[309932007,1704221432848,-451.99651,0.00045899,4]
[309932008,1704221432857,-3214.22,0.000459,10]
[309932009,1704221432866,-12915.63701118,0.000459,2]
[309932010,1704221432875,-151.0,0.000459,7]
[309932011,1704221432885,-151.0,0.000459,7]
[309932012,1704221432894,-151.0,0.00045927,7]
[309932013,1704221432904,-151.0,0.00045927,7]
[309932014,1704221432912,-25349.1432991,0.00045927,5]
[309932015,1704221432922,-1362.25552486,0.00045989,39]
[309932016,1704221432931,-239.29468555,0.00045998,2]
[309932017,1704221432941,-233.6077761,0.00045998,4]
[309932018,1704221432950,-224.29140145,0.00045998,2]
[309932019,1704221432959,-2258.93362584,0.00045998,2]
[309932020,1704221432969,-154.86062544,0.00045998,4]
[309932021,1704221432979,-1089.53752435,0.00045998,4]
[309932022,1704221432988,-281.44437409,0.00045998,4]
[309932023,1704221432997,-438.37444332,0.00045998,4]
[309932024,1704221433007,-253.16930114,0.00045998,4]
[309932025,1704221433017,-163.00260305,0.00045998,4]
[309932026,1704221433027,-28554.35175214,0.00045998,4]
[309932027,1704221433037,-4631.96606935,0.00045998,4]
[309932028,1704221433047,-1276.50396454,0.00045998,4]
[309932029,1704221433057,-262.59653837,0.00045998,4]
[309932030,1704221433066,-1049.42753666,0.00045998,7]
[309932031,1704221433075,-309.5202444,0.00045998,30]
[309932032,1704221433085,-2993.04367632,0.00045998,4]
[309932033,1704221433094,-2802.81688075,0.00045998,4]
[309932034,1704221433103,-1187.26320115,0.00045998,4]
[309932035,1704221433112,-260.66578313,0.00045998,4]
[309932036,1704221433122,-3938.54537635,0.00045998,2]
[309932037,1704221433132,-409.63897575,0.00045998,4]
[309932038,1704221433141,-1283.32827039,0.00045998,4]
[309932039,1704221433150,-626.44018341,0.00045998,2]
[309932040,1704221433159,-711.31999457,0.00045998,4]
[309932041,1704221433169,-512.69997262,0.00045998,6]
[309932042,1704221433180,-151.0,0.00045998,7]
[309932043,1704221433190,-151.0,0.00045998,7]
[309932044,1704221433199,-151.0,0.00045999,7]
[309932045,1704221433208,-231.450188,0.00045999,7]
[309932046,1704221433218,-1348.71266763,0.00045999,2]
[309932047,1704221433227,-96464.39,0.00046,2]
[309932048,1704221433236,-151.0,0.00046,7]
[309932049,1704221433246,-2000.0,0.00046,39]
[309932050,1704221433255,-151.0,0.00046,7]
[309932051,1704221433265,-151.0,0.00046,7]
[309932052,1704221433275,-2000.0,0.0004601,39]
[309932053,1704221433284,-2000.0,0.0004602,39]
[309932054,1704221433294,-568.87,0.00046026,7]
[309932055,1704221433303,-568.87,0.00046026,7]
[309932056,1704221433312,-568.87,0.00046026,7]
[309932057,1704221433321,-568.87,0.00046026,7]
[309932058,1704221433330,-568.87,0.00046026,7]
[309932059,1704221433340,-568.87,0.00046026,7]
[309932060,1704221433349,-568.87,0.00046026,7]
[309932061,1704221433358,-568.87,0.00046026,7]
[309932062,1704221433368,-568.87,0.00046026,7]
[309932063,1704221433378,-568.87,0.00046026,7]
[309932064,1704221433387,-436.62208745,0.00046026,2]
[309932065,1704221433396,-431.72595038,0.00046026,2]
[309932066,1704221433406,-185.02540731,0.00046026,7]
[309932067,1704221433417,-151.0,0.00046026,7]
[309932068,1704221433427,-266.03149724,0.00046027,3]
[309932069,1704221433436,-500.0,0.00046027,21]
[309932070,1704221433448,-500.0,0.00046027,7]
[309932071,1704221433457,-500.0,0.00046027,21]
[309932072,1704221433466,-500.0,0.00046027,21]
[309932073,1704221433476,-500.0,0.00046027,21]
[309932074,1704221433484,-500.0,0.00046027,21]
[309932075,1704221433494,-500.0,0.00046027,21]
[309932076,1704221433503,-500.0,0.00046027,21]
[309932077,1704221433513,-500.0,0.00046027,21]
[309932078,1704221433522,-500.0,0.00046027,21]
[309932079,1704221433532,-500.0,0.00046027,21]
[309932080,1704221433541,-500.0,0.00046027,21]
[309932081,1704221433550,-500.0,0.00046027,21]
[309932082,1704221433560,-501.67373075,0.00046027,21]
[309932083,1704221433569,-500.0,0.00046027,21]
[309932084,1704221433578,-500.0,0.00046027,21]
[309932085,1704221433588,-500.0,0.00046027,21]
[309932086,1704221433597,-500.0,0.00046027,21]
[309932087,1704221433607,-584.08852329,0.00046027,21]
[309932088,1704221433616,-500.0,0.00046027,21]
[309932089,1704221433626,-500.0,0.00046027,21]
[309932090,1704221433636,-500.0,0.00046027,21]
[309932091,1704221433645,-500.0,0.00046027,21]
[309932092,1704221433654,-500.0,0.00046027,21]
[309932093,1704221433663,-500.0,0.00046027,21]
[309932094,1704221433673,-524.27616997,0.00046027,21]
[309932095,1704221433682,-202.33165788,0.00046027,21]
[309932096,1704221433692,-500.0,0.00046027,21]
[309932097,1704221433701,-500.0,0.00046027,21]
[309932098,1704221433710,-501.42571875,0.00046027,21]
[309932099,1704221433719,-626.71,0.00046027,21]
[309932100,1704221433729,-500.0,0.00046027,21]
[309932101,1704221433738,-500.0,0.00046027,21]
[309932102,1704221433747,-500.0,0.00046027,21]
[309932103,1704221433757,-500.0,0.00046027,21]
[309932104,1704221433766,-500.0,0.00046027,21]
[309932105,1704221433775,-500.0,0.00046027,21]
[309932106,1704221433784,-500.0,0.00046027,21]
[309932107,1704221433794,-468.91987237,0.00046027,21]
[309932108,1704221433803,-500.0,0.00046027,21]
[309932109,1704221433813,-500.0,0.00046027,21]
[309932110,1704221433822,-649.26283367,0.00046027,21]
[309932111,1704221433831,-504.08580467,0.00046027,21]
[309932112,1704221433841,-500.0,0.00046027,21]
[309932113,1704221433850,-500.0,0.00046027,21]
[309932114,1704221433860,-518.14245649,0.00046027,21]
[309932115,1704221433870,-500.0,0.00046027,21]
[309932116,1704221433881,-500.0,0.00046027,21]
[309932117,1704221433890,-500.0,0.00046027,21]
[309932118,1704221433899,-500.0,0.00046027,21]
[309932119,1704221433908,-503.92208139,0.00046027,21]
[309932120,1704221433917,-500.0,0.00046027,21]
[309932121,1704221433926,-500.0,0.00046027,21]
[309932122,1704221433936,-500.0,0.00046027,21]
[309932123,1704221433945,-500.0,0.00046027,21]
[309932124,1704221433955,-500.0,0.00046027,21]
[309932125,1704221433964,-500.0,0.00046027,21]
[309932126,1704221433973,-464.2916147,0.00046027,21]
[309932127,1704221433983,-500.0,0.00046027,21]
[309932128,1704221433992,-500.0,0.00046027,21]
[309932129,1704221434002,-191.0848439,0.00046027,21]
[309932130,1704221434012,-500.0,0.00046027,21]
[309932131,1704221434021,-500.0,0.00046027,21]
[309932132,1704221434031,-500.0,0.00046027,21]
[309932133,1704221434040,-500.0,0.00046027,21]
[309932134,1704221434049,-500.0,0.00046027,21]
[309932135,1704221434058,-500.0,0.00046027,21]
[309932136,1704221434067,-500.0,0.00046027,21]
[309932137,1704221434076,-500.0,0.00046027,21]
[309932138,1704221434086,-500.0,0.00046027,21]
[309932139,1704221434096,-500.0,0.00046027,21]
[309932140,1704221434105,-371.79662322,0.00046027,21]
[309932141,1704221434114,-500.0,0.00046027,21]
[309932142,1704221434125,-500.0,0.00046027,21]
[309932143,1704221434135,-500.0,0.00046027,21]
[309932144,1704221434144,-500.0,0.00046027,21]
[309932145,1704221434153,-512.23908805,0.00046027,21]
[309932146,1704221434162,-500.0,0.00046027,21]
[309932147,1704221434172,-500.0,0.00046027,21]
[309932148,1704221434183,-500.0,0.00046027,21]
[309932149,1704221434193,-500.0,0.00046027,21]
[309932150,1704221434202,-500.0,0.00046027,21]
[309932151,1704221434211,-500.0,0.00046027,21]
[309932152,1704221434220,-500.0,0.00046027,21]
[309932153,1704221434230,-500.0,0.00046027,21]
[309932154,1704221434239,-500.0,0.00046027,21]
[309932155,1704221434248,-500.0,0.00046027,21]
[309932156,1704221434257,-500.0,0.00046027,21]
[309932157,1704221434267,-500.0,0.00046027,21]
[309932158,1704221434276,-500.0,0.00046027,21]
[309932159,1704221434285,-500.0,0.00046027,21]
[309932160,1704221434294,-303.30778824,0.00046027,21]
[309932161,1704221434303,-500.0,0.00046027,21]
[309932162,1704221434313,-500.0,0.00046027,21]
[309932163,1704221434322,-510.05222749,0.00046027,21]
[309932164,1704221434331,-500.0,0.00046027,21]
[309932165,1704221434341,-588.07685629,0.00046027,21]
[309932166,1704221434350,-500.0,0.00046027,21]
[309932167,1704221434423,-500.0,0.00046027,21]
[309932168,1704221434433,-500.0,0.00046027,21]
[309932169,1704221434442,-500.0,0.00046027,21]
[309932170,1704221434451,-500.0,0.00046027,21]
[309932171,1704221434460,-500.0,0.00046027,21]
[309932172,1704221434470,-500.0,0.00046027,21]
[309932173,1704221434478,-500.0,0.00046027,21]
[309932174,1704221434487,-500.0,0.00046027,21]
[309932175,1704221434497,-500.0,0.00046027,21]
[309932176,1704221434506,-500.0,0.00046027,21]
[309932177,1704221434515,-150.94178006,0.00046027,21]
[309932178,1704221434525,-500.0,0.00046027,21]
[309932179,1704221434534,-500.0,0.00046027,21]
[309932180,1704221434543,-633.59973668,0.00046027,21]
[309932181,1704221434553,-500.0,0.00046027,21]
[309932182,1704221434562,-419.67615755,0.00046027,21]
[309932183,1704221434572,-150.0,0.00046027,21]
[309932184,1704221434581,-150.0,0.00046027,21]
[309932185,1704221434590,-150.0,0.00046027,21]
[309932186,1704221434600,-196.72984184,0.00046027,21]
[309932187,1704221434610,-600.76335342,0.00046027,21]
[309932188,1704221434619,-500.0,0.00046027,21]
[309932189,1704221434629,-500.0,0.00046027,21]
[309932190,1704221434638,-500.0,0.00046027,21]
[309932191,1704221434648,-500.0,0.00046027,21]
[309932192,1704221434658,-500.0,0.00046027,21]
[309932193,1704221434667,-500.0,0.00046027,21]
[309932194,1704221434676,-500.0,0.00046027,21]
[309932195,1704221434685,-500.0,0.00046027,21]
[309932196,1704221434695,-500.0,0.00046027,21]
[309932197,1704221434704,-500.0,0.00046027,21]
[309932198,1704221434713,-584.98026133,0.00046027,21]
[309932199,1704221434723,-500.0,0.00046027,21]
[309932200,1704221434732,-500.0,0.00046027,21]
[309932201,1704221434741,-500.0,0.00046027,21]
[309932202,1704221434751,-500.0,0.00046027,21]
[309932203,1704221434760,-500.0,0.00046027,21]
[309932204,1704221434770,-500.0,0.00046027,21]
[309932205,1704221434779,-500.0,0.00046027,21]
[309932206,1704221434788,-500.0,0.00046027,21]
[309932207,1704221434798,-500.0,0.00046027,21]
[309932208,1704221434807,-485.12366676,0.00046027,21]
[309932209,1704221434817,-500.0,0.00046027,21]
[309932210,1704221434826,-500.0,0.00046027,21]
[309932211,1704221434835,-500.0,0.00046027,21]
[309932212,1704221434845,-500.0,0.00046027,21]
[309932213,1704221434854,-594.19725092,0.00046027,21]
[309932214,1704221434864,-500.0,0.00046027,21]
[309932215,1704221434873,-500.0,0.00046027,21]
[309932216,1704221434883,-500.0,0.00046027,21]
[309932217,1704221434892,-500.0,0.00046027,21]
[309932218,1704221434901,-500.0,0.00046027,21]
[309932219,1704221434912,-524.55943634,0.00046027,21]
[309932220,1704221434921,-500.0,0.00046027,21]
[309932221,1704221434930,-478.07277205,0.00046027,21]
[309932222,1704221434941,-461.1283246,0.00046027,21]
[309932223,1704221434950,-557.39496908,0.00046027,21]
[309932224,1704221434960,-542.04898534,0.00046027,2]
[309932225,1704221434970,-500.0,0.00046027,21]
[309932226,1704221434980,-500.0,0.00046027,21]
[309932227,1704221434990,-500.0,0.00046027,21]
[309932228,1704221434999,-500.0,0.00046027,21]
[309932229,1704221435010,-500.0,0.00046027,21]
[309932230,1704221435020,-500.0,0.00046027,21]
[309932231,1704221435031,-500.0,0.00046027,21]
[309932232,1704221435040,-500.0,0.00046027,21]
[309932233,1704221435050,-500.0,0.00046027,21]
[309932234,1704221435059,-500.0,0.00046027,21]
[309932235,1704221435068,-500.0,0.00046027,21]
[309932236,1704221435078,-500.0,0.00046027,21]
[309932237,1704221435091,-500.0,0.00046027,21]
[309932238,1704221435101,-500.0,0.00046027,21]
[309932239,1704221435110,-500.0,0.00046027,21]
[309932240,1704221435119,-500.0,0.00046027,21]
[309932241,1704221435129,-500.0,0.00046027,21]
[309932242,1704221435139,-500.0,0.00046027,21]
[309932243,1704221435149,-500.0,0.00046027,21]
[309932244,1704221435158,-500.0,0.00046027,21]
[309932245,1704221435168,-500.0,0.00046027,21]
[309932246,1704221435180,-500.0,0.00046027,21]
[309932247,1704221435189,-500.0,0.00046027,21]
[309932248,1704221435199,-500.0,0.00046027,21]
[309932249,1704221435208,-500.0,0.00046027,21]
[309932250,1704221435218,-500.0,0.00046027,21]
[309932251,1704221435227,-500.0,0.00046027,21]
[309932252,1704221435236,-500.0,0.00046027,21]
[309932253,1704221435245,-530.13306416,0.00046027,21]
[309932254,1704221435255,-500.0,0.00046027,21]
[309932255,1704221435264,-500.0,0.00046027,21]
[309932256,1704221435273,-500.0,0.00046027,21]
[309932257,1704221435284,-500.0,0.00046027,21]
[309932258,1704221435293,-500.0,0.00046027,21]
[309932259,1704221435303,-500.0,0.00046027,21]
[309932260,1704221435312,-500.0,0.00046027,21]
[309932261,1704221435321,-500.0,0.00046027,21]
[309932262,1704221435331,-500.0,0.00046027,21]
[309932263,1704221435340,-500.0,0.00046027,21]
[309932264,1704221435350,-500.0,0.00046027,21]
[309932265,1704221435359,-500.0,0.00046027,21]
[309932266,1704221435369,-500.0,0.00046027,21]
[309932267,1704221435379,-500.0,0.00046027,21]
[309932268,1704221435388,-500.0,0.00046027,21]
[309932269,1704221435398,-500.0,0.00046027,21]
[309932270,1704221435407,-500.0,0.00046027,21]
[309932271,1704221435416,-500.0,0.00046027,21]
[309932272,1704221435425,-500.00000001,0.00046027,21]
[309932273,1704221435435,-500.0,0.00046027,21]
[309932274,1704221435444,-500.0,0.00046027,21]
[309932275,1704221435454,-253.81854273,0.00046027,21]
[309932276,1704221435463,-562.23284822,0.00046027,21]
[309932277,1704221435474,-535.22861133,0.00046027,21]
[309932278,1704221435483,-633.07281392,0.00046027,21]
[309932279,1704221435493,-500.0,0.00046027,21]
[309932280,1704221435503,-500.0,0.00046027,21]
[309932281,1704221435513,-500.0,0.00046027,21]
[309932282,1704221435522,-500.0,0.00046027,21]
[309932283,1704221435532,-500.0,0.00046027,21]
[309932284,1704221435542,-500.0,0.00046027,21]
[309932285,1704221435552,-269.293909,0.00046027,21]
[309932286,1704221435561,-500.0,0.00046027,21]
[309932287,1704221435571,-500.0,0.00046027,21]
[309932288,1704221435580,-500.0,0.00046027,21]
[309932289,1704221435590,-500.0,0.00046027,21]
[309932290,1704221435599,-500.0,0.00046027,21]
[309932291,1704221435609,-500.0,0.00046027,21]
[309932292,1704221435618,-500.0,0.00046027,21]
[309932293,1704221435628,-500.0,0.00046027,21]
[309932294,1704221435637,-500.0,0.00046027,21]
[309932295,1704221435647,-500.0,0.00046027,21]
[309932296,1704221435656,-500.0,0.00046027,21]
[309932297,1704221435666,-500.0,0.00046027,21]
[309932298,1704221435675,-500.0,0.00046027,21]
[309932299,1704221435684,-500.0,0.00046027,21]
[309932300,1704221435694,-500.0,0.00046027,21]
[309932301,1704221435704,-500.0,0.00046027,21]
[309932302,1704221435713,-500.0,0.00046027,21]
[309932303,1704221435722,-500.0,0.00046027,21]
[309932304,1704221435732,-500.0,0.00046027,21]
[309932305,1704221435742,-500.0,0.00046027,21]
[309932306,1704221435751,-500.0,0.00046027,21]
[309932307,1704221435761,-500.0,0.00046027,21]
[309932308,1704221435770,-500.0,0.00046027,21]
[309932309,1704221435780,-500.0,0.00046027,21]
[309932310,1704221435789,-500.0,0.00046027,21]
[309932311,1704221435798,-500.0,0.00046027,21]
[309932312,1704221435808,-500.0,0.00046027,21]
[309932313,1704221435817,-500.0,0.00046027,21]
[309932314,1704221435826,-500.0,0.00046027,21]
[309932315,1704221435835,-500.0,0.00046027,21]
[309932316,1704221435846,-620.87376224,0.00046027,21]
[309932317,1704221435855,-500.0,0.00046027,21]
[309932318,1704221435865,-500.0,0.00046027,21]
[309932319,1704221435874,-500.0,0.00046027,21]
[309932320,1704221435884,-500.0,0.00046027,21]
[309932321,1704221435893,-500.0,0.00046027,21]
[309932322,1704221435903,-500.0,0.00046027,21]
[309932323,1704221435912,-500.0,0.00046027,21]
[309932324,1704221435922,-237.9344844,0.00046027,21]
[309932325,1704221435932,-500.0,0.00046027,21]
[309932326,1704221435941,-500.0,0.00046027,21]
[309932327,1704221435950,-500.0,0.00046027,21]
[309932328,1704221435960,-500.0,0.00046027,21]
[309932329,1704221435969,-500.0,0.00046027,21]
[309932330,1704221435978,-500.0,0.00046027,21]
[309932331,1704221435988,-500.0,0.00046027,21]
[309932332,1704221435997,-500.0,0.00046027,21]
[309932333,1704221436007,-365.92228136,0.00046027,21]
[309932334,1704221436017,-500.0,0.00046027,21]
[309932335,1704221436028,-500.0,0.00046027,21]
[309932336,1704221436038,-500.0,0.00046027,21]
[309932337,1704221436048,-500.0,0.00046027,21]
[309932338,1704221436127,-229.15786222,0.00046027,21]
[309932339,1704221436137,-500.0,0.00046027,21]
[309932340,1704221436147,-500.0,0.00046027,21]
[309932341,1704221436157,-500.0,0.00046027,21]
[309932342,1704221436167,-500.0,0.00046027,21]
[309932343,1704221436179,-500.0,0.00046027,21]
[309932344,1704221436189,-500.0,0.00046027,21]
[309932345,1704221436199,-500.0,0.00046027,21]
[309932346,1704221436209,-500.0,0.00046027,21]
[309932347,1704221436219,-500.0,0.00046027,21]
[309932348,1704221436229,-500.0,0.00046027,21]
[309932349,1704221436238,-500.0,0.00046027,21]
[309932350,1704221436247,-500.0,0.00046027,21]
[309932351,1704221436257,-500.0,0.00046027,21]
[309932352,1704221436267,-500.0,0.00046027,21]
[309932353,1704221436277,-500.0,0.00046027,21]
[309932354,1704221436287,-348.1015584,0.00046027,21]
[309932355,1704221436296,-500.0,0.00046027,21]
[309932356,1704221436306,-1019.27,0.00046027,21]
[309932357,1704221436315,-500.0,0.00046027,21]
[309932358,1704221436324,-500.0,0.00046027,21]
[309932359,1704221436333,-1019.27,0.00046027,21]
[309932360,1704221436343,-408.32688455,0.00046027,21]
[309932361,1704221436352,-1019.27,0.00046027,21]
[309932362,1704221436361,-1019.27,0.00046027,21]
[309932363,1704221436370,-1019.27,0.00046027,21]
[309932364,1704221436380,-1019.27,0.00046027,21]
[309932365,1704221436390,-1019.27,0.00046027,21]
[309932366,1704221436399,-1019.27,0.00046027,21]
[309932367,1704221436408,-420.21795715,0.00046027,21]
[309932368,1704221436418,-1019.27,0.00046027,21]
[309932369,1704221436427,-500.0,0.00046027,21]
[309932370,1704221436437,-1019.27,0.00046027,21]
[309932371,1704221436446,-556.63240373,0.00046027,21]
[309932372,1704221436455,-1019.27,0.00046027,21]
[309932373,1704221436465,-1019.27,0.00046027,21]
[309932374,1704221436475,-1019.27,0.00046027,21]
[309932375,1704221436486,-1019.27,0.00046027,21]
[309932376,1704221436497,-1019.27,0.00046027,21]
[309932377,1704221436507,-1019.27,0.00046027,21]
[309932378,1704221436517,-1019.27,0.00046027,21]
[309932379,1704221436527,-1019.27,0.00046027,21]
[309932380,1704221436536,-501.74218974,0.00046027,21]
[309932381,1704221436546,-1019.27,0.00046027,21]
[309932382,1704221436555,-1019.27,0.00046027,21]
[309932383,1704221436565,-1019.27,0.00046027,21]
[309932384,1704221436575,-1019.27,0.00046027,21]
[309932385,1704221436584,-1019.27,0.00046027,21]
[309932386,1704221436594,-1019.33662954,0.00046027,21]
[309932387,1704221436604,-500.0,0.00046027,21]
[309932388,1704221436614,-500.0,0.00046027,21]
[309932389,1704221436623,-174.33439689,0.00046027,21]
[309932390,1704221436633,-500.0,0.00046027,21]
[309932391,1704221436643,-500.0,0.00046027,21]
[309932392,1704221436652,-500.0,0.00046027,21]
[309932393,1704221436662,-500.0,0.00046027,21]
[309932394,1704221436671,-500.0,0.00046027,21]
[309932395,1704221436681,-500.0,0.00046027,21]
[309932396,1704221436690,-500.0,0.00046027,21]
[309932397,1704221436700,-500.0,0.00046027,21]